[Event "Titled Tuesday Blitz May 4 2021"]
[White "Gahan, M G"]
[Black "Novikova, Galina"]
[WhiteFideId "5027373"]
[BlackFideId "4157095"]
[WhiteElo "2264"]
[BlackElo "1966"]
[Result "1-0"]
[Round "01"]
[TimeControl "180+1"]
[Date "2021.05.04"]
[WhiteClock "0:00:46"]
[BlackClock "0:00:02"]

1. e4 {[%clk 0:02:59]}  e6 {[%clk 0:02:59]} 2. b3 {[%clk 0:02:59]}  d5 {[%clk 0:02:59]} 3. Bb2 {[%clk 0:02:59]}  dxe4 {[%clk 0:02:59]} 4. Nc3 {[%clk 0:02:59]}  Nf6 {[%clk 0:02:59]} 5. g4 {[%clk 0:03:00]}  h6 {[%clk 0:02:52]} 6. Bg2 {[%clk 0:02:59]}  Nc6 {[%clk 0:02:48]} 7. Nxe4 {[%clk 0:02:58]}  Be7 {[%clk 0:02:43]} 8. Qe2 {[%clk 0:02:57]}  Nd4 {[%clk 0:02:28]} 9. Qd3 {[%clk 0:02:56]}  e5 {[%clk 0:02:22]} 10. Nxf6+ {[%clk 0:02:51]}  Bxf6 {[%clk 0:02:21]} 11. h3 {[%clk 0:02:51]}  O-O {[%clk 0:02:14]} 12. O-O-O {[%clk 0:02:51]}  a5 {[%clk 0:02:12]} 13. Ne2 {[%clk 0:02:44]}  e4 {[%clk 0:01:48]} 14. Bxe4 {[%clk 0:02:41]}  Nxe2+ {[%clk 0:01:48]} 15. Qxe2 {[%clk 0:02:42]}  Bxb2+ {[%clk 0:01:49]} 16. Kxb2 {[%clk 0:02:43]}  a4 {[%clk 0:01:50]} 17. d4 {[%clk 0:02:38]}  axb3 {[%clk 0:01:49]} 18. axb3 {[%clk 0:02:39]}  Qd6 {[%clk 0:01:45]} 19. Ra1 {[%clk 0:02:30]}  Rxa1 {[%clk 0:01:38]} 20. Rxa1 {[%clk 0:02:31]}  Qxd4+ {[%clk 0:01:39]} 21. c3 {[%clk 0:02:31]}  Qb6 {[%clk 0:01:32]} 22. Ra8 {[%clk 0:02:27]}  Be6 {[%clk 0:01:30]} 23. Rxf8+ {[%clk 0:02:26]}  Kxf8 {[%clk 0:01:31]} 24. Bc2 {[%clk 0:02:26]}  Qc5 {[%clk 0:01:10]} 25. f4 {[%clk 0:02:23]}  Bd5 {[%clk 0:01:02]} 26. Qe5 {[%clk 0:02:21]}  Qc6 {[%clk 0:00:55]} 27. c4 {[%clk 0:02:18]}  Bg2 {[%clk 0:00:50]} 28. h4 {[%clk 0:02:17]}  Bf3 {[%clk 0:00:44]} 29. g5 {[%clk 0:02:17]}  hxg5 {[%clk 0:00:44]} 30. hxg5 {[%clk 0:02:12]}  Bh5 {[%clk 0:00:31]} 31. Qd4 {[%clk 0:02:10]}  Qd6 {[%clk 0:00:26]} 32. Qxd6+ {[%clk 0:01:58]}  cxd6 {[%clk 0:00:27]} 33. Kc3 {[%clk 0:01:59]}  Ke7 {[%clk 0:00:27]} 34. Kd4 {[%clk 0:01:59]}  Bf3 {[%clk 0:00:27]} 35. b4 {[%clk 0:01:53]}  b6 {[%clk 0:00:26]} 36. Be4 {[%clk 0:01:47]}  Be2 {[%clk 0:00:25]} 37. Bd5 {[%clk 0:01:47]}  f6 {[%clk 0:00:25]} 38. Kc3 {[%clk 0:01:44]}  fxg5 {[%clk 0:00:23]} 39. fxg5 {[%clk 0:01:45]}  Bg4 {[%clk 0:00:23]} 40. Kb3 {[%clk 0:01:44]}  Bd7 {[%clk 0:00:22]} 41. Kc3 {[%clk 0:01:43]}  Bf5 {[%clk 0:00:22]} 42. Kd4 {[%clk 0:01:43]}  Bd7 {[%clk 0:00:22]} 43. Ke3 {[%clk 0:01:43]}  Bf5 {[%clk 0:00:22]} 44. Kf4 {[%clk 0:01:43]}  Bd3 {[%clk 0:00:22]} 45. Kg4 {[%clk 0:01:43]}  Bg6 {[%clk 0:00:21]} 46. Kh4 {[%clk 0:01:39]}  Kd7 {[%clk 0:00:22]} 47. Bf3 {[%clk 0:01:38]}  Ke7 {[%clk 0:00:21]} 48. Bh5 {[%clk 0:01:35]}  Bd3 {[%clk 0:00:21]} 49. Bf3 {[%clk 0:01:27]}  Bxc4 {[%clk 0:00:22]} 50. Kh5 {[%clk 0:01:27]}  Bd3 {[%clk 0:00:21]} 51. Kg4 {[%clk 0:01:24]}  Ke6 {[%clk 0:00:21]} 52. Kf4 {[%clk 0:01:24]}  Bc4 {[%clk 0:00:20]} 53. Bh5 {[%clk 0:01:21]}  Bd3 {[%clk 0:00:09]} 54. Ke3 {[%clk 0:01:13]}  Bf5 {[%clk 0:00:08]} 55. Kd4 {[%clk 0:01:11]}  Bh3 {[%clk 0:00:07]} 56. Bg6 {[%clk 0:01:07]}  Bg2 {[%clk 0:00:07]} 57. Bh7 {[%clk 0:01:06]}  Bb7 {[%clk 0:00:07]} 58. Kc4 {[%clk 0:01:05]}  Bc6 {[%clk 0:00:07]} 59. Kd4 {[%clk 0:01:03]}  Be8 {[%clk 0:00:07]} 60. Ke4 {[%clk 0:00:58]}  Bc6+ {[%clk 0:00:07]} 61. Kf4 {[%clk 0:00:51]}  Bb5 {[%clk 0:00:05]} 62. Bg8+ {[%clk 0:00:50]}  Ke7 {[%clk 0:00:03]} 63. Ke4 {[%clk 0:00:49]}  Bc6+ {[%clk 0:00:03]} 64. Kf5 {[%clk 0:00:47]}  d5 {[%clk 0:00:02]} 65. Ke5 {[%clk 0:00:46]} 1-0


[Site "https://www.chess.com"]

[Event "Titled Tuesday Blitz May 4 2021"]
[White "Garcia Garcia, Alejandro"]
[Black "Qi, Henry"]
[WhiteFideId "3516334"]
[BlackFideId "2073188"]
[WhiteElo "2131"]
[BlackElo "2080"]
[Result "1-0"]
[Round "01"]
[TimeControl "180+1"]
[Date "2021.05.04"]
[WhiteClock "0:01:04"]
[BlackClock "0:00:21"]

1. d4 {[%clk 0:02:59]}  g6 {[%clk 0:02:59]} 2. g3 {[%clk 0:02:59]}  Bg7 {[%clk 0:02:59]} 3. Bg2 {[%clk 0:03:00]}  d6 {[%clk 0:02:59]} 4. c4 {[%clk 0:03:00]}  Nc6 {[%clk 0:02:57]} 5. Nf3 {[%clk 0:02:59]}  Bg4 {[%clk 0:02:56]} 6. d5 {[%clk 0:02:58]}  Bxf3 {[%clk 0:02:47]} 7. exf3 {[%clk 0:02:58]}  Ne5 {[%clk 0:02:46]} 8. Qe2 {[%clk 0:02:57]}  Nf6 {[%clk 0:02:39]} 9. O-O {[%clk 0:02:56]}  O-O {[%clk 0:02:32]} 10. Nc3 {[%clk 0:02:56]}  c6 {[%clk 0:02:29]} 11. dxc6 {[%clk 0:02:52]}  Nxc6 {[%clk 0:02:26]} 12. b3 {[%clk 0:02:42]}  Qa5 {[%clk 0:02:02]} 13. Bb2 {[%clk 0:02:40]}  d5 {[%clk 0:01:49]} 14. cxd5 {[%clk 0:02:03]}  Nxd5 {[%clk 0:01:49]} 15. Nxd5 {[%clk 0:02:03]}  Qxd5 {[%clk 0:01:47]} 16. Rfd1 {[%clk 0:02:02]}  Qa5 {[%clk 0:01:33]} 17. Rd7 {[%clk 0:01:43]}  Rfd8 {[%clk 0:01:26]} 18. Rxd8+ {[%clk 0:01:29]}  Rxd8 {[%clk 0:01:24]} 19. Bxg7 {[%clk 0:01:29]}  Kxg7 {[%clk 0:01:22]} 20. f4 {[%clk 0:01:19]}  Qc3 {[%clk 0:00:31]} 21. Rd1 {[%clk 0:01:14]}  Rxd1+ {[%clk 0:00:28]} 22. Qxd1 {[%clk 0:01:15]}  b6 {[%clk 0:00:20]} 23. Bxc6 {[%clk 0:01:13]}  Qxc6 {[%clk 0:00:20]} 24. Qd4+ {[%clk 0:01:13]}  Qf6 {[%clk 0:00:20]} 25. Qa4 {[%clk 0:01:08]}  Qa1+ {[%clk 0:00:20]} 26. Kg2 {[%clk 0:01:08]}  Kf6 {[%clk 0:00:19]} 27. Qxa7 {[%clk 0:01:07]}  Qd4 {[%clk 0:00:19]} 28. Qb7 {[%clk 0:01:05]}  Qc5 {[%clk 0:00:19]} 29. Qe4 {[%clk 0:01:04]}  Kg7 {[%clk 0:00:19]} 30. Qe5+ {[%clk 0:01:04]}  Qxe5 {[%clk 0:00:20]} 31. fxe5 {[%clk 0:01:05]}  Kh6 {[%clk 0:00:20]} 32. f4 {[%clk 0:01:04]}  Kh5 {[%clk 0:00:20]} 33. h3 {[%clk 0:01:04]}  f6 {[%clk 0:00:20]} 34. Kf3 {[%clk 0:01:04]}  fxe5 {[%clk 0:00:21]} 35. fxe5 {[%clk 0:01:04]}  Kg5 {[%clk 0:00:21]} 36. Ke4 {[%clk 0:01:04]}  e6 {[%clk 0:00:21]} 37. a4 {[%clk 0:01:04]} 1-0


[Site "https://www.chess.com"]

[Event "Titled Tuesday Blitz May 4 2021"]
[White "Gedgafov, Chamal"]
[Black "Gurevich, Dmitry"]
[WhiteFideId "34130621"]
[BlackFideId "2000407"]
[WhiteElo "2005"]
[BlackElo "2506"]
[Result "0-1"]
[Round "01"]
[TimeControl "180+1"]
[Date "2021.05.04"]
[WhiteClock "0:00:16"]
[BlackClock "0:00:11"]

1. d4 {[%clk 0:03:00]}  Nf6 {[%clk 0:02:58]} 2. c4 {[%clk 0:02:59]}  a6 {[%clk 0:02:57]} 3. Nc3 {[%clk 0:02:57]}  c5 {[%clk 0:02:57]} 4. d5 {[%clk 0:02:55]}  b5 {[%clk 0:02:57]} 5. cxb5 {[%clk 0:02:55]}  axb5 {[%clk 0:02:56]} 6. Nxb5 {[%clk 0:02:52]}  Qa5+ {[%clk 0:02:56]} 7. Nc3 {[%clk 0:02:50]}  Bb7 {[%clk 0:02:56]} 8. Nf3 {[%clk 0:02:41]}  Bxd5 {[%clk 0:02:45]} 9. e3 {[%clk 0:02:38]}  Bc6 {[%clk 0:02:33]} 10. Be2 {[%clk 0:02:36]}  g6 {[%clk 0:02:32]} 11. O-O {[%clk 0:02:35]}  Bg7 {[%clk 0:02:33]} 12. Ne5 {[%clk 0:02:26]}  O-O {[%clk 0:02:31]} 13. f3 {[%clk 0:02:18]}  Bb7 {[%clk 0:02:26]} 14. e4 {[%clk 0:02:12]}  d6 {[%clk 0:02:23]} 15. Nc4 {[%clk 0:02:10]}  Qc7 {[%clk 0:02:21]} 16. Bg5 {[%clk 0:02:08]}  Nbd7 {[%clk 0:02:18]} 17. Qd2 {[%clk 0:02:06]}  Nb6 {[%clk 0:02:09]} 18. Bh6 {[%clk 0:02:04]}  Ba6 {[%clk 0:01:59]} 19. b3 {[%clk 0:01:57]}  Bxc4 {[%clk 0:01:55]} 20. Bxc4 {[%clk 0:01:51]}  Nxc4 {[%clk 0:01:54]} 21. bxc4 {[%clk 0:01:51]}  Rfb8 {[%clk 0:01:38]} 22. Bxg7 {[%clk 0:01:50]}  Kxg7 {[%clk 0:01:37]} 23. Nb5 {[%clk 0:01:47]}  Qa5 {[%clk 0:01:34]} 24. Qb2 {[%clk 0:01:38]}  Qb4 {[%clk 0:01:31]} 25. Qc2 {[%clk 0:01:24]}  Ra4 {[%clk 0:01:26]} 26. Rfc1 {[%clk 0:01:22]}  Rba8 {[%clk 0:01:19]} 27. a3 {[%clk 0:01:18]}  Qa5 {[%clk 0:01:18]} 28. Qb2 {[%clk 0:01:07]}  Kg8 {[%clk 0:01:15]} 29. Qc3 {[%clk 0:00:54]}  Qxc3 {[%clk 0:01:13]} 30. Rxc3 {[%clk 0:00:53]}  Nd7 {[%clk 0:01:10]} 31. Kf2 {[%clk 0:00:50]}  R8a5 {[%clk 0:01:03]} 32. Ke3 {[%clk 0:00:46]}  Ne5 {[%clk 0:01:00]} 33. Rac1 {[%clk 0:00:44]}  Nxc4+ {[%clk 0:00:56]} 34. Rxc4 {[%clk 0:00:44]}  Rxc4 {[%clk 0:00:57]} 35. Rxc4 {[%clk 0:00:43]}  Rxb5 {[%clk 0:00:57]} 36. Ra4 {[%clk 0:00:34]}  Rb2 {[%clk 0:00:54]} 37. g3 {[%clk 0:00:33]}  Rxh2 {[%clk 0:00:49]} 38. Ra7 {[%clk 0:00:34]}  Kf8 {[%clk 0:00:48]} 39. a4 {[%clk 0:00:34]}  Ra2 {[%clk 0:00:45]} 40. a5 {[%clk 0:00:34]}  g5 {[%clk 0:00:43]} 41. g4 {[%clk 0:00:33]}  Ra3+ {[%clk 0:00:39]} 42. Ke2 {[%clk 0:00:32]}  h6 {[%clk 0:00:38]} 43. a6 {[%clk 0:00:32]}  c4 {[%clk 0:00:37]} 44. Ra8+ {[%clk 0:00:25]}  Kg7 {[%clk 0:00:36]} 45. a7 {[%clk 0:00:24]}  Kf6 {[%clk 0:00:36]} 46. Rc8 {[%clk 0:00:19]}  Rxa7 {[%clk 0:00:34]} 47. Rxc4 {[%clk 0:00:20]}  Ke5 {[%clk 0:00:33]} 48. Rc2 {[%clk 0:00:16]}  Kf4 {[%clk 0:00:29]} 49. Rb2 {[%clk 0:00:16]}  Ra3 {[%clk 0:00:26]} 50. Rb5 {[%clk 0:00:16]}  Ra2+ {[%clk 0:00:22]} 51. Kd3 {[%clk 0:00:16]}  Kxf3 {[%clk 0:00:19]} 52. Rf5+ {[%clk 0:00:17]}  Kxg4 {[%clk 0:00:19]} 53. Rxf7 {[%clk 0:00:17]}  h5 {[%clk 0:00:14]} 54. Rxe7 {[%clk 0:00:17]}  h4 {[%clk 0:00:14]} 55. Re6 {[%clk 0:00:17]}  Ra6 {[%clk 0:00:12]} 56. e5 {[%clk 0:00:15]}  Ra3+ {[%clk 0:00:12]} 57. Ke4 {[%clk 0:00:15]}  dxe5 {[%clk 0:00:12]} 58. Rxe5 {[%clk 0:00:15]}  h3 {[%clk 0:00:12]} 59. Re8 {[%clk 0:00:16]}  h2 {[%clk 0:00:12]} 60. Rh8 {[%clk 0:00:16]}  Rh3 {[%clk 0:00:11]} 0-1


[Site "https://www.chess.com"]

[Event "Titled Tuesday Blitz May 4 2021"]
[White "Golsta, Madara"]
[Black "Vovk, Orest"]
[WhiteFideId "11607386"]
[BlackFideId "14113490"]
[WhiteElo "1880"]
[BlackElo "2203"]
[Result "0-1"]
[Round "01"]
[TimeControl "180+1"]
[Date "2021.05.04"]
[WhiteClock "0:01:29"]
[BlackClock "0:02:33"]

1. e4 {[%clk 0:03:00]}  Nc6 {[%clk 0:02:56]} 2. Nf3 {[%clk 0:02:58]}  d5 {[%clk 0:02:56]} 3. exd5 {[%clk 0:02:57]}  Qxd5 {[%clk 0:02:56]} 4. Nc3 {[%clk 0:02:57]}  Qa5 {[%clk 0:02:56]} 5. Bc4 {[%clk 0:02:49]}  Bg4 {[%clk 0:02:56]} 6. O-O {[%clk 0:02:48]}  O-O-O {[%clk 0:02:55]} 7. d3 {[%clk 0:02:46]}  Nd4 {[%clk 0:02:48]} 8. Bf4 {[%clk 0:02:20]}  Qh5 {[%clk 0:02:43]} 9. Ne4 {[%clk 0:01:36]}  Nxf3+ {[%clk 0:02:38]} 10. gxf3 {[%clk 0:01:29]}  Bxf3 {[%clk 0:02:33]} 0-1


[Site "https://www.chess.com"]

[Event "Titled Tuesday Blitz May 4 2021"]
[White "Goltsev, Dmitry"]
[Black "DieHardCuban"]
[WhiteFideId "24176710"]
[WhiteElo "2383"]
[BlackElo "2432"]
[Result "1-0"]
[Round "01"]
[TimeControl "180+1"]
[Date "2021.05.04"]
[WhiteClock "0:00:03"]
[BlackClock "0:00:02"]

1. e4 {[%clk 0:03:00]}  c5 {[%clk 0:02:55]} 2. Nf3 {[%clk 0:03:00]}  d6 {[%clk 0:02:51]} 3. d4 {[%clk 0:03:00]}  cxd4 {[%clk 0:02:50]} 4. Nxd4 {[%clk 0:03:01]}  Nf6 {[%clk 0:02:51]} 5. Nc3 {[%clk 0:03:01]}  a6 {[%clk 0:02:43]} 6. Be2 {[%clk 0:03:01]}  e5 {[%clk 0:02:40]} 7. Nb3 {[%clk 0:03:01]}  Be7 {[%clk 0:02:40]} 8. a4 {[%clk 0:03:00]}  Nc6 {[%clk 0:02:36]} 9. O-O {[%clk 0:03:00]}  O-O {[%clk 0:02:35]} 10. f4 {[%clk 0:02:59]}  exf4 {[%clk 0:02:32]} 11. Bxf4 {[%clk 0:03:00]}  Be6 {[%clk 0:02:31]} 12. Be3 {[%clk 0:02:53]}  d5 {[%clk 0:02:25]} 13. exd5 {[%clk 0:02:51]}  Nxd5 {[%clk 0:02:26]} 14. Nxd5 {[%clk 0:02:51]}  Qxd5 {[%clk 0:02:27]} 15. Bf3 {[%clk 0:02:42]}  Qc4 {[%clk 0:02:16]} 16. Nd2 {[%clk 0:02:29]}  Qb4 {[%clk 0:02:07]} 17. b3 {[%clk 0:01:54]}  Rad8 {[%clk 0:02:00]} 18. Qe2 {[%clk 0:01:48]}  Nd4 {[%clk 0:01:59]} 19. Qd1 {[%clk 0:01:35]}  Qc3 {[%clk 0:01:42]} 20. Re1 {[%clk 0:00:35]}  Nxc2 {[%clk 0:00:49]} 21. Rc1 {[%clk 0:00:33]}  Nxe3 {[%clk 0:00:31]} 22. Rxc3 {[%clk 0:00:31]}  Nxd1 {[%clk 0:00:30]} 23. Rxd1 {[%clk 0:00:32]}  Bb4 {[%clk 0:00:28]} 24. Rc2 {[%clk 0:00:32]}  Bf5 {[%clk 0:00:27]} 25. Rb2 {[%clk 0:00:30]}  Bc3 {[%clk 0:00:18]} 26. Ra2 {[%clk 0:00:29]}  Rd3 {[%clk 0:00:16]} 27. Nc4 {[%clk 0:00:27]}  Rfd8 {[%clk 0:00:12]} 28. Rxd3 {[%clk 0:00:24]}  Rxd3 {[%clk 0:00:13]} 29. Kf2 {[%clk 0:00:19]}  Bd4+ {[%clk 0:00:12]} 30. Ke2 {[%clk 0:00:19]}  Rxb3 {[%clk 0:00:13]} 31. Na5 {[%clk 0:00:15]}  Re3+ {[%clk 0:00:12]} 32. Kd2 {[%clk 0:00:13]}  g5 {[%clk 0:00:12]} 33. Bxb7 {[%clk 0:00:10]}  Re5 {[%clk 0:00:11]} 34. Nc6 {[%clk 0:00:08]}  Be3+ {[%clk 0:00:11]} 35. Ke1 {[%clk 0:00:09]}  Re6 {[%clk 0:00:10]} 36. Bc8 {[%clk 0:00:06]}  Rxc6 {[%clk 0:00:06]} 37. Bxf5 {[%clk 0:00:07]}  Rc5 {[%clk 0:00:06]} 38. Bd3 {[%clk 0:00:04]}  Kg7 {[%clk 0:00:06]} 39. Bxa6 {[%clk 0:00:04]}  Rc1+ {[%clk 0:00:07]} 40. Ke2 {[%clk 0:00:04]}  Ba7 {[%clk 0:00:08]} 41. Bb5 {[%clk 0:00:04]}  Rh1 {[%clk 0:00:09]} 42. h3 {[%clk 0:00:04]}  Rh2 {[%clk 0:00:10]} 43. Kf3 {[%clk 0:00:04]}  g4+ {[%clk 0:00:11]} 44. Kxg4 {[%clk 0:00:04]}  Rh1 {[%clk 0:00:09]} 45. Re2 {[%clk 0:00:04]}  Rf1 {[%clk 0:00:06]} 46. Re7 {[%clk 0:00:04]}  Bd4 {[%clk 0:00:06]} 47. Bc4 {[%clk 0:00:04]}  Bc3 {[%clk 0:00:04]} 48. Bd5 {[%clk 0:00:03]}  Rf6 {[%clk 0:00:04]} 49. Bf3 {[%clk 0:00:03]}  Kg6 {[%clk 0:00:03]} 50. Re4 {[%clk 0:00:03]}  Rf4+ {[%clk 0:00:02]} 51. Rxf4 {[%clk 0:00:03]} 1-0


[Site "https://www.chess.com"]

[Event "Titled Tuesday Blitz May 4 2021"]
[White "Golubev, Mikhail"]
[Black "Ismayil, Malak"]
[WhiteFideId "14100983"]
[BlackFideId "13412604"]
[WhiteElo "2374"]
[BlackElo "1879"]
[Result "1-0"]
[Round "01"]
[TimeControl "180+1"]
[Date "2021.05.04"]
[WhiteClock "0:00:05"]
[BlackClock "0:00:03"]

1. e4 {[%clk 0:03:00]}  e5 {[%clk 0:02:55]} 2. Nf3 {[%clk 0:02:56]}  Nc6 {[%clk 0:02:54]} 3. Bb5 {[%clk 0:02:56]}  Bc5 {[%clk 0:02:50]} 4. c3 {[%clk 0:02:50]}  d6 {[%clk 0:02:46]} 5. d4 {[%clk 0:02:43]}  exd4 {[%clk 0:02:45]} 6. cxd4 {[%clk 0:02:41]}  Bb4+ {[%clk 0:02:44]} 7. Bd2 {[%clk 0:02:24]}  Bxd2+ {[%clk 0:02:42]} 8. Nbxd2 {[%clk 0:02:23]}  Bd7 {[%clk 0:02:41]} 9. O-O {[%clk 0:02:20]}  Nge7 {[%clk 0:02:29]} 10. Rc1 {[%clk 0:02:09]}  O-O {[%clk 0:02:28]} 11. Re1 {[%clk 0:01:55]}  Bg4 {[%clk 0:02:24]} 12. Qb3 {[%clk 0:01:41]}  Rb8 {[%clk 0:02:18]} 13. Qc3 {[%clk 0:01:13]}  d5 {[%clk 0:01:55]} 14. e5 {[%clk 0:01:12]}  a6 {[%clk 0:01:37]} 15. Ba4 {[%clk 0:01:01]}  Rc8 {[%clk 0:01:32]} 16. h3 {[%clk 0:00:57]}  Bxf3 {[%clk 0:01:25]} 17. Nxf3 {[%clk 0:00:57]}  f6 {[%clk 0:01:20]} 18. Rcd1 {[%clk 0:00:50]}  fxe5 {[%clk 0:01:09]} 19. dxe5 {[%clk 0:00:48]}  Qe8 {[%clk 0:00:55]} 20. Bxc6 {[%clk 0:00:34]}  bxc6 {[%clk 0:00:54]} 21. e6 {[%clk 0:00:33]}  Rf6 {[%clk 0:00:33]} 22. Re2 {[%clk 0:00:25]}  Nf5 {[%clk 0:00:25]} 23. Rde1 {[%clk 0:00:19]}  Nd6 {[%clk 0:00:24]} 24. Nd4 {[%clk 0:00:15]}  Nb5 {[%clk 0:00:09]} 25. Nxb5 {[%clk 0:00:12]}  cxb5 {[%clk 0:00:10]} 26. e7 {[%clk 0:00:12]}  c5 {[%clk 0:00:10]} 27. Qe5 {[%clk 0:00:11]}  d4 {[%clk 0:00:07]} 28. Qd5+ {[%clk 0:00:11]}  Kh8 {[%clk 0:00:06]} 29. Re4 {[%clk 0:00:08]}  Rf7 {[%clk 0:00:03]} 30. Qxf7 {[%clk 0:00:07]}  Qxf7 {[%clk 0:00:03]} 31. e8=Q+ {[%clk 0:00:06]}  Rxe8 {[%clk 0:00:03]} 32. Rxe8+ {[%clk 0:00:06]}  Qxe8 {[%clk 0:00:03]} 33. Rxe8# {[%clk 0:00:05]} 1-0


[Site "https://www.chess.com"]

[Event "Titled Tuesday Blitz May 4 2021"]
[White "Grineva, Marianna"]
[Black "Kapitanchuk, Tomas"]
[WhiteFideId "14102013"]
[BlackFideId "135046"]
[WhiteElo "1925"]
[BlackElo "1955"]
[Result "0-1"]
[Round "01"]
[TimeControl "180+1"]
[Date "2021.05.04"]
[WhiteClock "0:00:02"]
[BlackClock "0:00:42"]

1. e4 {[%clk 0:03:00]}  c5 {[%clk 0:02:59]} 2. Nf3 {[%clk 0:03:00]}  e6 {[%clk 0:03:00]} 3. d4 {[%clk 0:03:01]}  cxd4 {[%clk 0:03:01]} 4. Nxd4 {[%clk 0:03:02]}  Nc6 {[%clk 0:03:02]} 5. Nc3 {[%clk 0:03:02]}  Qc7 {[%clk 0:03:02]} 6. Be3 {[%clk 0:02:59]}  a6 {[%clk 0:03:02]} 7. f4 {[%clk 0:02:58]}  b5 {[%clk 0:02:59]} 8. a3 {[%clk 0:02:54]}  Bb7 {[%clk 0:02:59]} 9. Bd3 {[%clk 0:02:50]}  Nxd4 {[%clk 0:02:55]} 10. Bxd4 {[%clk 0:02:49]}  Qxf4 {[%clk 0:02:55]} 11. Qe2 {[%clk 0:02:43]}  Nf6 {[%clk 0:02:52]} 12. Rf1 {[%clk 0:02:38]}  Qxh2 {[%clk 0:02:50]} 13. O-O-O {[%clk 0:02:27]}  Be7 {[%clk 0:02:37]} 14. Kb1 {[%clk 0:02:13]}  Qc7 {[%clk 0:02:28]} 15. g4 {[%clk 0:02:05]}  h6 {[%clk 0:02:22]} 16. Rf2 {[%clk 0:01:49]}  d6 {[%clk 0:02:08]} 17. Rdf1 {[%clk 0:01:40]}  e5 {[%clk 0:02:07]} 18. Be3 {[%clk 0:01:38]}  Bc6 {[%clk 0:01:49]} 19. Na2 {[%clk 0:01:24]}  Qb7 {[%clk 0:01:43]} 20. g5 {[%clk 0:01:18]}  hxg5 {[%clk 0:01:38]} 21. Bxg5 {[%clk 0:01:19]}  a5 {[%clk 0:01:37]} 22. Nc3 {[%clk 0:00:52]}  b4 {[%clk 0:01:37]} 23. axb4 {[%clk 0:00:49]}  axb4 {[%clk 0:01:38]} 24. Nd5 {[%clk 0:00:49]}  Qa7 {[%clk 0:01:30]} 25. Kc1 {[%clk 0:00:43]}  Bxd5 {[%clk 0:01:29]} 26. exd5 {[%clk 0:00:41]}  Qa1+ {[%clk 0:01:24]} 27. Kd2 {[%clk 0:00:41]}  Qxb2 {[%clk 0:01:25]} 28. Bb5+ {[%clk 0:00:38]}  Kd8 {[%clk 0:01:25]} 29. Qe3 {[%clk 0:00:28]}  Qc3+ {[%clk 0:01:22]} 30. Qxc3 {[%clk 0:00:25]}  bxc3+ {[%clk 0:01:22]} 31. Kd3 {[%clk 0:00:23]}  Rh3+ {[%clk 0:01:20]} 32. Kc4 {[%clk 0:00:21]}  Rc8+ {[%clk 0:01:14]} 33. Kb3 {[%clk 0:00:20]}  Rb8 {[%clk 0:01:14]} 34. Ka4 {[%clk 0:00:19]}  Rg3 {[%clk 0:01:11]} 35. Bxf6 {[%clk 0:00:18]}  Rg4+ {[%clk 0:01:10]} 36. Ka5 {[%clk 0:00:16]}  Bxf6 {[%clk 0:01:07]} 37. Rh2 {[%clk 0:00:15]}  Ke7 {[%clk 0:01:04]} 38. Rf3 {[%clk 0:00:14]}  Ra8+ {[%clk 0:00:59]} 39. Kb6 {[%clk 0:00:14]}  Rb8+ {[%clk 0:00:59]} 40. Kc6 {[%clk 0:00:13]}  Rb4 {[%clk 0:00:56]} 41. Rxc3 {[%clk 0:00:07]}  R4xb5 {[%clk 0:00:55]} 42. Ra3 {[%clk 0:00:05]}  R5b6+ {[%clk 0:00:53]} 43. Kc7 {[%clk 0:00:04]}  R6b7+ {[%clk 0:00:54]} 44. Kc6 {[%clk 0:00:04]}  Rb6+ {[%clk 0:00:53]} 45. Kc7 {[%clk 0:00:05]}  R8b7+ {[%clk 0:00:48]} 46. Kc8 {[%clk 0:00:04]}  e4 {[%clk 0:00:46]} 47. Ra8 {[%clk 0:00:03]}  Rb4 {[%clk 0:00:44]} 48. c4 {[%clk 0:00:03]}  Rd7 {[%clk 0:00:43]} 49. Rc2 {[%clk 0:00:02]}  e3 {[%clk 0:00:42]} 0-1


[Site "https://www.chess.com"]

[Event "Titled Tuesday Blitz May 4 2021"]
[White "Grunberg, Mihai-Lucian"]
[Black "Remizov, Yaroslav"]
[WhiteFideId "1204149"]
[BlackFideId "34134015"]
[WhiteElo "2364"]
[BlackElo "2367"]
[Result "0-1"]
[Round "01"]
[TimeControl "180+1"]
[Date "2021.05.04"]
[WhiteClock "0:01:55"]
[BlackClock "0:02:49"]

1. Nf3 {[%clk 0:02:50]}  d5 {[%clk 0:02:59]} 2. c4 {[%clk 0:02:50]}  d4 {[%clk 0:02:59]} 3. d3 {[%clk 0:02:50]}  Nc6 {[%clk 0:02:58]} 4. e3 {[%clk 0:02:47]}  g6 {[%clk 0:02:56]} 5. exd4 {[%clk 0:02:45]}  Nxd4 {[%clk 0:02:56]} 6. Nxd4 {[%clk 0:02:44]}  Qxd4 {[%clk 0:02:57]} 7. Nc3 {[%clk 0:02:44]}  Bg7 {[%clk 0:02:57]} 8. Be3 {[%clk 0:02:43]}  Qd8 {[%clk 0:02:57]} 9. d4 {[%clk 0:02:39]}  Nh6 {[%clk 0:02:56]} 10. Be2 {[%clk 0:02:36]}  Nf5 {[%clk 0:02:57]} 11. d5 {[%clk 0:02:34]}  Nxe3 {[%clk 0:02:54]} 12. fxe3 {[%clk 0:02:32]}  O-O {[%clk 0:02:55]} 13. O-O {[%clk 0:02:31]}  c6 {[%clk 0:02:55]} 14. e4 {[%clk 0:02:31]}  Qb6+ {[%clk 0:02:55]} 15. Kh1 {[%clk 0:02:26]}  Qxb2 {[%clk 0:02:55]} 16. Na4 {[%clk 0:02:25]}  Qxa1 {[%clk 0:02:55]} 17. Qxa1 {[%clk 0:02:24]}  Bxa1 {[%clk 0:02:56]} 18. Rxa1 {[%clk 0:02:24]}  Bd7 {[%clk 0:02:56]} 19. Nc5 {[%clk 0:02:24]}  Bc8 {[%clk 0:02:55]} 20. e5 {[%clk 0:02:22]}  b6 {[%clk 0:02:55]} 21. Nb3 {[%clk 0:02:19]}  cxd5 {[%clk 0:02:55]} 22. cxd5 {[%clk 0:02:19]}  Bb7 {[%clk 0:02:55]} 23. Bf3 {[%clk 0:02:17]}  Rfd8 {[%clk 0:02:56]} 24. Rd1 {[%clk 0:02:17]}  Rac8 {[%clk 0:02:55]} 25. h4 {[%clk 0:02:16]}  a5 {[%clk 0:02:54]} 26. Rd4 {[%clk 0:02:12]}  a4 {[%clk 0:02:53]} 27. Nd2 {[%clk 0:02:11]}  Bxd5 {[%clk 0:02:50]} 28. Bxd5 {[%clk 0:02:00]}  e6 {[%clk 0:02:50]} 29. Ne4 {[%clk 0:01:57]}  exd5 {[%clk 0:02:50]} 30. Nf6+ {[%clk 0:01:56]}  Kg7 {[%clk 0:02:50]} 31. Nxd5 {[%clk 0:01:55]}  Rc5 {[%clk 0:02:49]} 0-1


[Site "https://www.chess.com"]